bitfinex/quotes_SOLUSD_20250410
["timestamp","ask_amount","ask_price","bid_price","bid_amount"]
[1744265734494,24.66037249,116.52,116.49,0.063]
[1744265735698,0.28432314,116.53,116.49,0.063]
[1744265735878,90.0811,116.54,116.49,16.14117249]
[1744265736077,106.15927249,116.54,116.49,16.14117249]
[1744265736277,106.15927249,116.54,116.49,0.063]
[1744265736807,16.07817249,116.53,116.49,0.063]
[1744265737098,16.07817249,116.51,116.49,0.063]
[1744265738295,16.07817249,116.52,116.49,0.063]
[1744265738875,24.66057249,116.52,116.49,0.063]
[1744265739075,16.07817249,116.5,116.49,0.063]
[1744265740197,24.66177249,116.5,116.49,0.063]
[1744265740402,24.94609563,116.5,116.49,0.063]
[1744265742500,16.07817249,116.5,116.49,0.063]
[1744265744081,8.86722314,116.51,116.49,0.063]
[1744265744399,24.94539563,116.51,116.49,0.063]
[1744265745501,16.07817249,116.5,116.49,0.063]
[1744265747103,90.0825,116.52,116.49,0.063]
[1744265747304,106.16067249,116.52,116.49,0.063]
[1744265747505,16.07817249,116.51,116.49,0.063]
[1744265749886,24.66107249,116.51,116.49,0.063]
[1744265750910,16.07817249,116.51,116.49,0.063]
[1744265751112,24.66117249,116.51,116.49,0.063]
[1744265751707,16.07817249,116.51,116.49,0.063]
[1744265753395,81.5,116.52,116.49,1.5838]
[1744265753886,91.79793511,116.52,116.49,1.5838]
[1744265754089,81.5,116.52,116.49,1.5838]
[1744265755516,81.5,116.52,116.5,8.5836]
[1744265756101,81.5,116.52,116.49,10.1679]
[1744265757110,91.79793511,116.52,116.49,10.1679]
[1744265757621,100.38033511,116.52,116.49,1.5838]
[1744265760331,91.79793511,116.52,116.49,10.1681]
[1744265760498,91.79793511,116.52,116.49,1.5838]
[1744265760832,100.38013511,116.52,116.49,1.5838]
[1744265761128,91.79793511,116.52,116.49,10.168]
[1744265761427,91.79793511,116.52,116.49,1.5838]
[1744265761724,81.5,116.52,116.49,10.1681]
[1744265762226,100.38023511,116.52,116.49,1.5838]
[1744265764226,100.38023511,116.52,116.49,0.063]
[1744265766303,81.53,116.56,116.51,28.94758397]
[1744265766507,0.03,116.56,116.55,10.29793511]
[1744265766910,0.03,116.56,116.52,47.80634044]
[1744265766911,0.03,116.56,116.54,10.29793511]
[1744265767117,0.03,116.56,116.52,6.6146]
[1744265767309,0.03,116.56,116.54,16.07144998]
[1744265767927,0.03,116.56,116.54,24.65164998]
[1744265769225,0.03,116.56,116.54,16.07144998]
[1744265769424,0.03,116.56,116.54,24.65214998]
[1744265770431,16.10144998,116.56,116.51,8.5827]
[1744265770724,16.07144998,116.55,116.5,17.59174998]
[1744265771326,16.10144998,116.56,116.51,16.07144998]
[1744265771512,0.03,116.56,116.52,16.07144998]
[1744265771832,16.07144998,116.55,116.51,16.07144998]
[1744265772129,24.65194998,116.55,116.51,16.07144998]
[1744265772332,24.65194998,116.55,116.51,24.65424998]
[1744265773343,0.03,116.56,116.52,16.07144998]
[1744265774212,0.03,116.56,116.53,8.5814]
[1744265774415,0.03,116.56,116.52,24.65324998]
[1744265775427,0.03,116.56,116.53,16.07144998]
[1744265776329,0.03,116.56,116.53,24.65224998]
[1744265776533,0.03,116.56,116.54,16.07144998]
[1744265777036,0.03,116.56,116.53,24.65224998]
[1744265779533,0.03,116.56,116.53,16.07144998]
[1744265780128,0.03,116.56,116.52,24.65364998]
[1744265782843,16.10144998,116.56,116.51,32.23404998]
[1744265784035,24.68134998,116.56,116.51,32.23404998]
[1744265784634,24.68134998,116.56,116.51,16.1626]
[1744265784635,16.07144998,116.55,116.51,16.1626]
[1744265784947,16.07144998,116.54,116.49,24.71844998]
[1744265785939,24.65224998,116.54,116.49,24.71844998]
[1744265786238,16.07144998,116.54,116.49,24.71844998]
[1744265786419,16.07144998,116.55,116.51,16.07144998]
[1744265786820,16.07144998,116.55,116.5,16.07144998]
[1744265787024,16.07144998,116.54,116.49,24.71844998]
[1744265787224,16.21361155,116.55,116.5,16.07144998]
[1744265787736,16.10144998,116.56,116.51,16.07144998]
[1744265787924,0.03,116.56,116.52,16.07144998]
[1744265788124,0.03,116.56,116.52,24.65294998]
[1744265788426,0.03,116.56,116.53,16.07144998]
[1744265788624,0.03,116.56,116.52,24.65294998]
[1744265789341,16.07144998,116.55,116.51,8.5829]
[1744265790440,16.10144998,116.56,116.51,24.65434998]
[1744265791138,0.03,116.56,116.52,34.72109884]
[1744265791326,0.03,116.56,116.54,8.5807]
[1744265791640,16.10144998,116.56,116.51,17.67654998]
[1744265791846,16.10144998,116.56,116.52,8.5822]
[1744265792051,0.03,116.56,116.52,8.5822]
[1744265794442,0.03,116.56,116.52,24.65364998]
[1744265794627,0.03,116.56,116.53,16.07144998]
[1744265795648,0.03,116.56,116.54,8.5807]
[1744265797021,0.03,116.56,116.53,24.65244998]
[1744265798131,0.03,116.56,116.55,16.07144998]
[1744265798447,0.03,116.57,116.56,18.933972]
[1744265798626,0.03,116.57,116.56,35.00542198]
[1744265799232,0.03,116.58,116.56,10.55922259]
[1744265799436,0.03,116.58,116.57,10.27489945]
[1744265799630,0.03,116.58,116.57,18.85339945]
[1744265801253,0.03,116.58,116.57,24.63694235]
[1744265802556,0.03,116.58,116.57,8.5785]
[1744265802755,0.03,116.58,116.57,24.63694235]
[1744265807941,0.03,116.58,116.57,43.28659121]
[1744265808652,0.03,116.58,116.55,1.6051]
[1744265808953,0.03,116.58,116.54,16.05844235]
[1744265809146,16.05844235,116.57,116.53,8.5811]
[1744265809635,16.08844235,116.58,116.53,24.63954235]
[1744265810066,16.08844235,116.58,116.54,16.05844235]
[1744265811168,16.05844235,116.57,116.53,8.5811]
[1744265811458,16.05844235,116.55,116.51,16.05844235]
[1744265811663,16.05844235,116.56,116.51,16.05844235]
[1744265812573,16.05844235,116.56,116.51,24.64094235]
[1744265814269,0.03,116.58,116.53,16.05844235]
[1744265814443,16.08844235,116.58,116.53,16.05844235]
[1744265816075,0.03,116.58,116.54,16.05844235]
[1744265817056,0.03,116.58,116.57,42.05844235]
[1744265817252,0.03,116.58,116.57,77.0508567]
[1744265817670,0.03,116.58,116.57,60.99241435]
[1744265817854,0.03,116.58,116.57,60.70809121]
[1744265819373,0.03,116.58,116.57,60.99241435]
[1744265820474,0.03,116.58,116.57,18.64964886]
[1744265820867,0.03,116.58,116.57,27.22814886]
[1744265821249,0.03,116.58,116.57,18.64964886]
[1744265821779,0.03,116.58,116.57,27.22814886]
[1744265822160,0.03,116.58,116.57,43.28659121]
[1744265822358,0.03,116.58,116.57,43.57091435]
[1744265822968,0.03,116.58,116.57,59.6293567]
[1744265823172,6.3801,116.66,116.59,0.28432314]
[1744265823363,0.03,116.68,116.64,16.05844235]
[1744265823675,0.03,116.68,116.65,16.05844235]
[1744265826182,0.03,116.68,116.64,24.63154235]
[1744265826952,0.03,116.68,116.65,16.05844235]
[1744265829182,0.03,116.68,116.65,24.63094235]
[1744265829366,0.03,116.68,116.65,16.05844235]
[1744265831865,16.08844235,116.68,116.63,34.70809121]
[1744265832193,16.05844235,116.66,116.61,16.05844235]
[1744265832489,16.05844235,116.67,116.62,16.05844235]
[1744265833169,24.63014235,116.67,116.62,16.05844235]
[1744265833895,24.63014235,116.67,116.6,20.16934886]
[1744265834073,16.05844235,116.66,116.61,16.05844235]
[1744265834276,16.05844235,116.65,116.61,16.05844235]
[1744265834701,16.05844235,116.64,116.59,18.64964886]
[1744265835061,16.05844235,116.64,116.59,34.70809121]
[1744265835291,8.5741,116.63,116.59,34.70809121]
[1744265835471,8.5741,116.63,116.59,16.05844235]
[1744265835672,16.05844235,116.62,116.57,34.70809121]
[1744265835973,16.05844235,116.61,116.56,18.64964886]
[1744265836173,16.05844235,116.6,116.55,8.5796]
[1744265836402,16.05844235,116.6,116.55,24.63804235]
[1744265836599,16.05844235,116.61,116.56,16.05844235]
[1744265836906,24.63474235,116.61,116.56,16.05844235]
[1744265837605,16.05844235,116.6,116.55,24.63804235]
[1744265837901,16.05844235,116.61,116.56,34.70809121]
[1744265838078,24.63344235,116.62,116.57,16.05844235]
[1744265839102,16.05844235,116.62,116.57,24.63674235]
[1744265841182,16.05844235,116.61,116.57,16.05844235]
[1744265841367,16.05844235,116.61,116.56,43.28699121]
[1744265841575,16.05844235,116.6,116.56,16.05844235]
[1744265842596,16.05844235,116.6,116.56,24.63744235]
[1744265842801,16.05844235,116.61,116.56,24.63744235]
[1744265843185,24.63404235,116.61,116.56,24.63744235]
[1744265844407,16.05844235,116.61,116.56,24.63744235]
[1744265846003,8.5752,116.62,116.56,24.63744235]
[1744265846310,16.05844235,116.62,116.57,16.05844235]
[1744265847308,16.05844235,116.62,116.58,8.5778]
[1744265848108,81.5,116.63,116.59,16.05844235]
[1744265848297,81.5,116.63,116.6,16.05844235]
[1744265849206,81.5,116.64,116.56,8.5792]
[1744265849381,16.05844235,116.6,116.56,8.5792]
[1744265849880,16.05844235,116.61,116.56,24.63764235]
[1744265851400,16.05844235,116.61,116.57,18.64964886]
[1744265851599,0.03,116.68,116.62,18.64964886]
[1744265851805,16.05844235,116.67,116.59,18.64964886]
[1744265851993,16.05844235,116.67,116.61,16.05844235]
[1744265852312,16.05844235,116.67,116.62,16.05844235]
[1744265852484,8.5719,116.66,116.62,16.05844235]
[1744265852905,8.5719,116.66,116.61,24.63384235]
[1744265854312,8.5719,116.66,116.61,16.05844235]
[1744265855216,0.03,116.68,116.64,16.05844235]
[1744265855392,0.03,116.68,116.66,16.05844235]
[1744265855812,0.03,116.68,116.65,16.05844235]
[1744265856125,0.03,116.68,116.64,16.05844235]
[1744265857291,0.03,116.68,116.64,25.67063771]
[1744265858224,0.03,116.68,116.65,25.67063771]
[1744265859718,0.03,116.68,116.64,44.32028657]
[1744265860621,0.03,116.68,116.64,52.89318657]
[1744265862419,25.67063771,116.67,116.64,8.5729]
[1744265862629,25.67063771,116.67,116.63,8.5741]
[1744265862803,34.24183771,116.67,116.62,34.24503771]
[1744265863525,34.24183771,116.67,116.62,8.5744]
[1744265863827,25.67063771,116.66,116.62,8.5744]
[1744265864006,8.6008,116.68,116.62,34.24503771]
[1744265864200,25.67063771,116.67,116.62,34.24503771]
[1744265865419,25.70063771,116.68,116.63,25.67063771]
[1744265865622,25.70063771,116.68,116.62,8.5744]
[1744265865623,25.67063771,116.67,116.62,34.24503771]
[1744265866616,25.67063771,116.66,116.62,8.5744]
[1744265867315,34.24273771,116.66,116.62,8.5744]
[1744265867724,25.67063771,116.66,116.62,8.5744]
[1744265868214,25.67063771,116.67,116.63,25.67063771]
[1744265869523,27.25223771,116.68,116.64,8.5733]
[1744265869725,25.70063771,116.68,116.64,8.5733]
[1744265870804,34.27113771,116.68,116.64,8.5733]
[1744265872828,25.67063771,116.67,116.61,44.32028657]
[1744265873125,25.70063771,116.68,116.64,18.64964886]
[1744265874232,0.03,116.68,116.64,18.64964886]
[1744265875040,0.03,116.68,116.66,18.64964886]
[1744265875206,0.03,116.68,116.67,46.20100971]
[1744265876511,0.03,116.68,116.67,54.77210971]
[1744265878639,0.03,116.68,116.67,62.41210971]
[1744265879440,0.03,116.68,116.67,52.77122014]
[1744265880334,0.0001,116.68,116.67,52.77122014]
[1744265880534,0.03,116.72,116.71,18.64964886]
[1744265880734,0.03,116.72,116.71,42.319397]
[1744265881249,0.0001,116.72,116.71,42.60372014]
[1744265881413,0.0001,116.72,116.71,44.17522014]
[1744265883645,0.0001,116.72,116.71,52.74342014]
[1744265884314,0.0001,116.72,116.71,52.459097]
[1744265888846,0.0001,116.72,116.71,24.59794814]
[1744265889033,0.0001,116.72,116.7,24.59844814]
[1744265890840,0.0001,116.72,116.7,16.02974814]
[1744265891037,0.0001,116.72,116.69,32.23914814]
[1744265892952,0.0001,116.72,116.7,16.02974814]
[1744265893159,0.0001,116.72,116.71,16.02974814]
[1744265893453,0.0001,116.72,116.71,34.679397]
[1744265894727,0.0001,116.72,116.71,43.247597]
[1744265895440,0.0001,116.73,116.72,18.64964886]
[1744265895643,0.0001,116.73,116.72,34.96372014]
[1744265896851,0.0001,116.73,116.72,43.53122014]
[1744265898833,0.0001,116.73,116.72,43.246897]
[1744265899047,0.0001,116.73,116.72,50.886897]
[1744265899962,0.0001,116.73,116.72,43.246897]
[1744265900257,0.0001,116.73,116.72,50.886897]
[1744265900760,0.0001,116.73,116.72,43.246897]
[1744265901055,0.0001,116.73,116.72,50.886897]
[1744265902154,0.0001,116.73,116.72,43.246897]
[1744265902355,0.0001,116.73,116.72,50.886897]
[1744265903141,0.0001,116.73,116.72,43.246897]
[1744265903542,0.0001,116.73,116.72,50.886897]
[1744265906857,0.0001,116.73,116.72,51.17122014]
[1744265908565,0.0001,116.73,116.72,27.21714886]
[1744265908746,0.0001,116.73,116.72,50.826897]
[1744265909060,0.0001,116.73,116.72,51.11122014]
[1744265909448,0.0001,116.73,116.72,50.826897]
[1744265910440,0.03,116.75,116.74,44.64964886]
[1744265910646,0.03,116.75,116.74,60.96372014]
[1744265911051,0.03,116.75,116.74,69.52972014]
[1744265911668,0.0001,116.75,116.74,69.52972014]
[1744265911860,7.7227,116.85,116.79,18.933972]
[1744265912059,7.7227,116.85,116.79,49.89407128]
[1744265912361,16.2806,116.85,116.79,52.22964886]
[1744265912569,32.31034814,116.85,116.79,68.259397]
[1744265912966,8.5587,116.84,116.79,76.821697]
[1744265913166,7.7227,116.85,116.79,77.10602014]
[1744265913365,16.02974814,116.84,116.79,16.02974814]
[1744265913569,16.02974814,116.84,116.79,23.60974814]
[1744265913773,16.02974814,116.83,116.79,7.58]
[1744265914272,16.02974814,116.83,116.79,16.1423]
[1744265914451,16.02974814,116.83,116.79,7.58]
[1744265915364,8.5601,116.82,116.78,24.59244814]
[1744265915575,24.58984814,116.82,116.78,16.02974814]
[1744265915867,24.58984814,116.82,116.77,24.59314814]
[1744265917965,7.6927,116.81,116.77,16.02974814]
[1744265918164,23.72244814,116.81,116.76,32.17394814]
[1744265918563,16.05974814,116.8,116.75,24.59464814]
[1744265918750,16.02974814,116.79,116.75,24.59464814]
[1744265919275,16.05974814,116.8,116.75,24.59464814]
[1744265919876,8.5623,116.79,116.75,24.59464814]
[1744265920479,8.5623,116.79,116.75,16.02974814]
[1744265920773,24.59204814,116.79,116.74,23.60974814]
[1744265921155,8.5623,116.79,116.74,23.60974814]
[1744265921362,8.5623,116.79,116.75,16.02974814]
[1744265921583,24.59204814,116.79,116.75,16.02974814]
[1744265921767,24.59204814,116.79,116.74,32.17564814]
[1744265923465,24.59294814,116.78,116.74,16.02974814]
[1744265924373,16.02974814,116.78,116.74,24.59554814]
[1744265924576,24.59234814,116.79,116.74,24.59554814]
[1744265925375,16.02974814,116.78,116.73,16.02974814]
[1744265926381,8.5638,116.77,116.73,16.02974814]
[1744265926681,24.59354814,116.77,116.73,16.02974814]
[1744265927474,24.59354814,116.77,116.72,16.1471]
[1744265927475,24.59354814,116.77,116.72,32.17684814]
[1744265927955,24.59354814,116.77,116.73,16.02974814]
[1744265928157,0.31432314,116.8,116.75,8.5653]
[1744265928371,16.02974814,116.79,116.74,24.59544814]
[1744265928761,16.02974814,116.78,116.74,8.5657]
[1744265928970,16.02974814,116.78,116.73,24.59614814]
[1744265929888,24.59284814,116.78,116.73,24.59614814]
[1744265933771,24.59384814,116.77,116.73,8.5664]
[1744265934290,24.59384814,116.77,116.73,24.59614814]
[1744265934291,16.02974814,116.77,116.73,24.59614814]
[1744265934887,24.59324814,116.78,116.73,24.59614814]
[1744265935183,16.02974814,116.78,116.74,16.02974814]
[1744265935370,24.59304814,116.78,116.73,24.59614814]
[1744265935700,16.02974814,116.75,116.72,8.5671]
[1744265935860,89.5098,116.77,116.72,8.5671]
[1744265936064,105.53954814,116.77,116.72,24.59684814]
[1744265936702,81.5,116.77,116.73,34.679397]
[1744265937466,81.5,116.77,116.74,8.566]
[1744265937876,16.02974814,116.78,116.75,18.64964886]
[1744265938191,0.03,116.8,116.77,16.02974814]
[1744265938496,0.03,116.8,116.79,16.02974814]
[1744265939878,0.03,116.8,116.78,8.5625]
[1744265940170,0.03,116.8,116.79,16.02974814]
[1744265940868,0.03,116.8,116.79,24.59204814]
[1744265941271,0.03,116.8,116.79,8.5623]
[1744265941502,0.03,116.8,116.79,43.241697]
[1744265941877,0.03,116.8,116.79,24.59204814]
[1744265945002,0.03,116.8,116.78,16.02974814]
[1744265945386,0.03,116.8,116.77,24.59314814]
[1744265945706,0.03,116.8,116.77,8.5634]
[1744265946508,0.03,116.8,116.76,24.59394814]
[1744265946804,16.05974814,116.8,116.76,24.59394814]
[1744265947678,24.62154814,116.8,116.76,8.5642]
[1744265948230,24.62154814,116.8,116.76,24.59394814]
[1744265949024,8.5918,116.8,116.76,24.59394814]
[1744265950526,24.62154814,116.8,116.76,16.02974814]
[1744265950827,24.62154814,116.8,116.75,24.59464814]
[1744265951415,24.62154814,116.8,116.75,8.5649]
[1744265951615,16.02974814,116.78,116.74,24.59534814]
[1744265951934,16.02974814,116.77,116.73,24.59604814]
[1744265952224,16.02974814,116.78,116.73,24.59604814]
[1744265952634,8.5631,116.78,116.73,24.59604814]
[1744265952814,24.59284814,116.78,116.73,24.59604814]
[1744265953142,16.02974814,116.78,116.74,16.02974814]
[1744265953435,16.02974814,116.79,116.75,16.02974814]
[1744265955031,16.02974814,116.79,116.75,24.59454814]
[1744265956415,16.02974814,116.79,116.75,8.5648]
[1744265957031,24.59214814,116.79,116.75,8.5648]
[1744265957204,16.02974814,116.79,116.75,8.5648]
[1744265958329,90.0919,116.8,116.75,8.5648]
[1744265958516,16.02974814,116.79,116.75,8.5648]
[1744265959329,10.25044847,116.79,116.74,10.25044847]
[1744265960235,90.0919,116.8,116.74,10.25044847]
[1744265960531,10.25044847,116.79,116.75,8.5653]
[1744265962532,18.81274847,116.79,116.75,8.5653]
[1744265963332,10.25044847,116.79,116.74,28.90009733]
[1744265963935,10.28044847,116.8,116.74,28.90009733]
[1744265964137,18.84214847,116.8,116.74,28.90009733]
[1744265964340,18.84214847,116.8,116.74,18.64964886]
[1744265964845,0.03,116.8,116.77,10.25044847]
[1744265965828,0.03,116.8,116.78,8.5631]
[1744265969156,0.03,116.8,116.77,8.5635]
[1744265969840,0.03,116.8,116.77,18.81394847]
[1744265970265,0.03,116.8,116.77,8.5635]
[1744265970868,0.03,116.8,116.77,18.81394847]
[1744265976653,0.03,116.8,116.76,27.21414886]
[1744265976850,0.03,116.8,116.77,10.25044847]
[1744265977248,0.03,116.8,116.76,37.46459733]
[1744265978285,0.03,116.8,116.76,18.81494847]
[1744265978450,10.25044847,116.79,116.76,8.5645]
[1744265978651,10.25044847,116.78,116.75,8.5646]
[1744265979354,10.25044847,116.79,116.75,8.5646]
[1744265979560,10.25044847,116.78,116.75,8.5646]
[1744265980182,10.25044847,116.79,116.75,8.5646]
[1744265980777,10.25044847,116.79,116.75,18.81504847]
[1744265980985,0.03,116.8,116.74,29.9808]
[1744265981163,10.25044847,116.79,116.75,18.64964886]
[1744265981862,10.25044847,116.79,116.74,40.23124847]
[1744265982681,0.03,116.8,116.78,10.25044847]
[1744265982888,0.03,116.8,116.79,28.90009733]
[1744265984787,0.03,116.8,116.79,37.46239733]
[1744265985088,0.03,116.8,116.79,37.74672047]
[1744265987761,0.03,116.8,116.79,37.46239733]
[1744265988584,0.03,116.8,116.79,37.74672047]
[1744265988980,10.25044847,116.86,116.79,37.46239733]
[1744265989180,10.25044847,116.86,116.81,10.25044847]
[1744265989964,10.25044847,116.85,116.8,10.25044847]
[1744265990973,10.25044847,116.85,116.8,18.81184847]
[1744265991780,10.25044847,116.85,116.8,10.25044847]
[1744265991976,18.80914847,116.84,116.8,10.25044847]
[1744265992480,18.80914847,116.84,116.8,18.81194847]
[1744265992688,18.80914847,116.84,116.8,10.25044847]
[1744265993496,18.80914847,116.84,116.79,18.81264847]
[1744265994078,10.25044847,116.84,116.79,18.81264847]
[1744265994394,100.30784847,116.86,116.81,10.25044847]
[1744265994898,81.5,116.86,116.82,10.25044847]
[1744265995097,25.14464847,116.87,116.82,10.25044847]
[1744265995893,25.14464847,116.87,116.82,18.81034847]
[1744265996596,10.25044847,116.85,116.81,8.5607]
[1744265997796,18.80844847,116.85,116.8,18.81164847]
[1744265998300,10.25044847,116.84,116.8,8.5612]
[1744265998900,10.25044847,116.84,116.79,37.46209733]
[1744265999276,10.25044847,116.83,116.78,26.41314847]
[1744265999684,18.81044847,116.83,116.78,26.41314847]
[1744265999903,10.25044847,116.82,116.78,16.1627]
[1744266000377,10.25044847,116.82,116.78,26.41314847]
[1744266000576,18.81044847,116.83,116.78,26.41314847]
[1744266000776,8.5589,116.84,116.78,26.41314847]
[1744266001077,10.25044847,116.84,116.79,10.25044847]
[1744266001401,10.25044847,116.84,116.77,1.6171]
[1744266001402,10.25044847,116.82,116.77,20.43114847]
[1744266002092,10.25044847,116.82,116.77,10.1807]
[1744266002093,10.25044847,116.81,116.77,10.1807]
[1744266002475,10.25044847,116.8,116.77,10.1807]
[1744266002876,10.25044847,116.8,116.76,8.5643]
[1744266003107,10.25044847,116.78,116.74,1.5517]
[1744266003277,0.14216157,116.81,116.74,1.5517]
[1744266003278,10.25044847,116.77,116.74,1.5517]
[1744266003599,10.25044847,116.78,116.74,1.5517]
[1744266003790,10.25044847,116.77,116.74,1.5517]
[1744266004192,10.25044847,116.77,116.72,16.2101]
[1744266004498,10.25044847,116.76,116.72,26.46054847]
[1744266004703,90.0618,116.8,116.74,10.25044847]
[1744266004878,10.25044847,116.79,116.74,10.25044847]
[1744266005086,91.75044847,116.8,116.75,10.25044847]
[1744266005285,97.51323168,116.8,116.75,16.01323168]
[1744266007108,97.51323168,116.8,116.76,8.5645]
[1744266007920,97.51323168,116.8,116.76,24.57773168]
[1744266008409,97.51323168,116.8,116.76,8.5645]
[1744266008803,16.01323168,116.78,116.74,8.5656]
[1744266009208,24.57583168,116.79,116.74,24.57883168]
[1744266009604,16.01323168,116.79,116.74,24.57883168]
[1744266009904,24.57563168,116.79,116.74,24.57883168]
[1744266010101,16.01323168,116.79,116.74,24.57883168]
[1744266010809,28.9791,116.83,116.76,16.01323168]
[1744266010998,16.01323168,116.82,116.77,34.66288054]
[1744266011516,16.01323168,116.83,116.78,16.01323168]
[1744266011812,16.01323168,116.84,116.79,16.01323168]
[1744266012014,16.01323168,116.84,116.8,1.5467]
[1744266012315,16.01323168,116.82,116.8,1.5467]
[1744266012606,16.01323168,116.81,116.77,24.57673168]
[1744266013892,16.01323168,116.8,116.76,33.70413168]
[1744266014309,16.01323168,116.8,116.76,17.6909]
[1744266015425,16.01323168,116.79,116.76,9.1267]
[1744266015599,16.01323168,116.8,116.76,10.111]
[1744266016520,24.57433168,116.81,116.76,26.12423168]
[1744266017927,16.01323168,116.8,116.76,10.111]
[1744266018800,24.57493168,116.8,116.76,10.111]
[1744266019606,24.57493168,116.8,116.76,1.5467]
[1744266020711,16.01323168,116.79,116.76,1.5467]
[1744266022102,16.01323168,116.78,116.76,1.5467]
[1744266022303,16.01323168,116.77,116.73,10.113]
[1744266022520,16.01323168,116.76,116.73,1.5467]
[1744266022734,16.01323168,116.75,116.72,0.063]
[1744266022899,0.28432314,116.78,116.72,0.063]
[1744266022900,16.01323168,116.74,116.72,0.063]
[1744266023528,16.01323168,116.73,116.72,0.063]
[1744266025229,24.57993168,116.73,116.72,0.063]
[1744266025815,16.01323168,116.73,116.72,0.063]
[1744266027725,24.57883168,116.75,116.72,0.063]
[1744266027926,16.01323168,116.75,116.72,0.063]
[1744266028357,16.01323168,116.76,116.72,8.6305]
[1744266029018,24.57783168,116.76,116.72,0.063]
[1744266030458,16.01323168,116.75,116.72,0.063]
[1744266030846,16.01323168,116.73,116.72,0.063]
[1744266031463,16.01323168,116.74,116.72,0.063]
[1744266031669,16.01323168,116.73,116.72,0.063]
[1744266032341,89.5993,116.84,116.75,26.0]
[1744266032651,89.5993,116.84,116.74,7.56]
[1744266032652,16.01323168,116.78,116.74,7.56]
[1744266033325,16.01323168,116.78,116.73,10.1]
[1744266033521,16.01323168,116.78,116.73,1.5338]
[1744266033752,16.01323168,116.77,116.73,1.5338]
[1744266035167,24.57733168,116.77,116.73,1.5338]
[1744266036358,24.57733168,116.77,116.73,10.1005]
[1744266038561,16.01323168,116.76,116.73,1.5338]
[1744266039563,8.5641,116.77,116.73,1.5338]
[1744266039752,24.57733168,116.77,116.73,1.5338]
[1744266040869,24.57733168,116.77,116.73,10.1005]
[1744266041166,16.01323168,116.77,116.73,10.1005]
[1744266041951,16.01323168,116.77,116.73,9.1005]
[1744266042266,24.57703168,116.77,116.73,9.1005]
[1744266043277,10.25469281,116.77,116.73,9.1005]
[1744266045175,10.25469281,116.77,116.73,0.5338]
[1744266046186,18.81869281,116.77,116.73,9.1005]
[1744266047583,10.25469281,116.76,116.73,9.1005]
[1744266048979,10.25469281,116.76,116.73,0.5338]
[1744266049179,10.25469281,116.74,116.72,8.6304]
[1744266049483,81.5,116.76,116.72,8.6304]
[1744266049484,10.25469281,116.75,116.72,8.6304]
[1744266049988,10.25469281,116.75,116.72,0.063]
[1744266050584,100.31929281,116.76,116.72,0.063]
[1744266051080,7.56,116.78,116.72,0.063]
[1744266051081,81.5,116.81,116.75,10.25469281]
[1744266051264,10.25469281,116.79,116.74,18.36819281]
[1744266051983,18.81729281,116.79,116.74,26.93359281]
[1744266054783,10.25469281,116.78,116.74,16.6789]
[1744266055381,10.25469281,116.77,116.74,16.6789]
[1744266057171,18.81859281,116.77,116.74,1.6159]
[1744266057371,10.25469281,116.76,116.74,1.6159]
[1744266058586,10.25469281,116.77,116.74,10.1818]
[1744266059596,10.25469281,116.77,116.74,1.6159]
[1744266060103,10.25469281,116.77,116.74,10.1818]
[1744266060404,10.25469281,116.79,116.74,20.43649281]
[1744266060708,10.25469281,116.79,116.74,10.1818]
[1744266065797,10.25469281,116.78,116.74,10.1818]
[1744266066291,10.25469281,116.77,116.74,10.1818]
[1744266066797,8.5623,116.79,116.74,10.1818]
[1744266066996,10.25469281,116.77,116.74,10.1818]
[1744266069194,10.25469281,116.78,116.74,10.1818]
[1744266074192,10.25469281,116.78,116.74,31.5969]
[1744266074389,10.25469281,116.79,116.74,41.85159281]
[1744266076204,81.53,116.84,116.77,10.25469281]
[1744266076381,10.25469281,116.83,116.78,10.25469281]
[1744266076884,10.25469281,116.83,116.79,8.5623]
[1744266077905,10.25469281,116.82,116.79,8.5623]
[1744266078700,10.25469281,116.83,116.79,8.5623]
[1744266078906,10.25469281,116.81,116.77,8.5638]
[1744266079105,10.25469281,116.8,116.77,8.5638]
[1744266079409,10.25469281,116.79,116.77,8.5638]
[1744266079591,10.25469281,116.78,116.76,10.2213]
[1744266080115,10.25469281,116.78,116.76,1.6571]